Cogmind - Beta 16 --- EXPLORER MODE // 2026.01.26 @ 11:10:41 Player: K.K.Y. Result: Destroyed by N8-3N3(R) with Subdweller Machine Gun Performance ------------- Evolutions (0) 0 Regions Visited (3) 600 Robots Destroyed (44) 220 Value Destroyed (1018) 1018 Prototype IDs (12) 240 Alien Tech Used (0) 0 Bonus (-122) -122 TOTAL SCORE: 1956 Bonus ------- Friendly Fire -122 Cogmind --------- Core Integrity 0/250 Matter 300/300 Energy 265/265 System Corruption 0% Temperature Cool (0) Movement Walking (280) Ox2 Location -10/Subcaves Parts ------- > --- POWER (1) -------- Improved Ion Engine > --- PROPULSION (2) --- Makeshift Leg > --- UTILITY (3) ------ Large Storage Unit Improved Terrain Scanner Makeshift System Shield > --- WEAPON (2) ------- Subdweller Beam Cannon Subdweller Beam Cannon > --- INVENTORY (15) --- Improved Ion Engine Improved Ion Engine Light Nuclear Core Scrap Suit High-capacity Storage Unit Light Armor Plating Light Armor Plating Bomb Drone Bay Makeshift Laser Slug Cannon Plasma Cutter Multitool Ripper Peak State ------------ > --- POWER ------------ Improved Ion Engine > --- PROPULSION ------- Makeshift Leg Makeshift Leg > --- UTILITY ---------- Large Storage Unit Improved Terrain Scanner Makeshift System Shield > --- WEAPON ----------- Subdweller Laser Battle Cannon > --- INVENTORY -------- Improved Ion Engine Improved Ion Engine Light Nuclear Core Scrap Suit High-capacity Storage Unit Light Armor Plating Light Armor Plating Bomb Drone Bay Makeshift Laser Slug Cannon Plasma Cutter Multitool Ripper [Rating: 26] Favorites ----------- Power Improved Ion Engine Engine Improved Ion Engine Propulsion Light Treads Treads Light Treads Leg Makeshift Leg Utility Large Storage Unit Device Structural Scanner Storage Large Storage Unit Hackware Makeshift System Shield Protection Light Armor Plating Weapon Assault Rifle Energy Gun Subdweller Laser Energy Cannon Subdweller Beam Cannon Ballistic Gun Assault Rifle Ballistic Cannon Battle Cannon Special Weapon Mining Laser Build | -11 -10 -10 -10 ------- Run | Yrd Mat Min Sub Slots Evolved 1 | . 1 . . Power . | . . . . Propulsion . | . . . . Utility 1 | . 1 . . Weapon . | . . . . Parts Attached 24 | 7 3 1 13 Power 3 | 1 1 . 1 Engine 3 | 1 1 . 1 Core . | . . . . Reactor . | . . . . Propulsion 7 | 2 . 1 4 Treads 4 | 2 . 1 1 Leg 3 | . . . 3 Wheel . | . . . . Hover . | . . . . Flight . | . . . . Utility 6 | 2 2 . 2 Device 2 | . 1 . 1 Storage 2 | 1 1 . . Processor . | . . . . Hackware 1 | . . . 1 Protection 1 | 1 . . . Artifact . | . . . . Weapon 8 | 2 . . 6 Energy Gun 2 | 1 . . 1 Energy Cannon 3 | . . . 3 Ballistic Gun 1 | 1 . . . Ballistic Cannon 1 | . . . 1 Launcher . | . . . . Special Weapon 1 | . . . 1 Impact Weapon . | . . . . Slashing Weapon . | . . . . Piercing Weapon . | . . . . Special Melee Weapon . | . . . . Unidentified Prototypes . | . . . . Parts Lost 7 | . . . 7 Power 1 | . . . 1 Propulsion 3 | . . . 3 Utility 1 | . . . 1 Weapon 2 | . . . 2 Highest Loss Streak 2 | . . . 2 To Critical Strikes . | . . . . Average Backups 10 | 1 5 12 12 Power 2 | . . 4 3 Propulsion . | . . . . Utility 4 | . 3 5 5 Weapon 1 | . 1 1 2 Tool/Special . | . . . . Unused Backups 12 | . . . 12 Power 3 | . . . 3 Propulsion . | . . . . Utility 4 | . . . 4 Weapon 3 | . . . 3 Tool/Special 2 | . . . 2 Average Slot Usage (%) 83 | . 78 78 87 Engine 11 | . 11 12 11 Treads 15 | . 25 25 8 Leg 5 | . . . 8 Device 9 | . 8 12 9 Storage 12 | . 12 12 12 Hackware 5 | . . . 10 Energy Gun 4 | . 3 3 5 Energy Cannon 4 | . . . 7 Ballistic Gun 6 | . 12 12 2 Ballistic Cannon 4 | . . . 7 Peak Build Rating 26 | 7 9 12 26 Average Rating 14 | 4 6 10 19 On Entrance 6 | . 7 8 12 Avg Prop Armor Cover (%) . | . . . . Naked Turns . | . . . . Heaviest Build 44 | 21 31 31 44 Greatest Support 40 | 40 40 40 40 Greatest Overweight (x) 2 | . . . 2 Average Overweight (x) . | . . . . Largest Inventory Capacity 15 | 10 15 15 15 Average Capacity 14 | 8 14 15 15 Most Carried 15 | 5 12 15 15 Average Carried 12 | 1 5 13 14 Final Capacity 15 | 10 15 15 15 Final Carried 15 | 2 11 15 15 Class Distribution -------------------- 100% | Hacker-Mutant Dominant Class ---------------- Hacker-Mutant | -10/Materials Hacker-Mutant | -10/Mines Hacker-Mutant | -10/Subcaves Resources | -11 -10 -10 -10 ----------- Run | Yrd Mat Min Sub Matter Collected 1132 | 284 251 77 520 Remotely . | . . . . Salvage Created 1422 | 167 571 98 586 Parts 102 | 13 45 14 30 Haulers Intercepted 2 | . 2 . . Recyclers Shooed . | . . . . Parts Field Recycled . | . . . . Retrieved Matter . | . . . . Parts Self-Destructed . | . . . . Prevented . | . . . . Parts Restored . | . . . . Kills | -11 -10 -10 -10 ------- Run | Yrd Mat Min Sub Combat Hostiles Destroyed 27 | . 10 4 13 Guns 22 | . 10 4 8 Cannons 5 | . . . 5 Classes Destroyed 11 | 2 5 . 4 Builder 3 | . 2 1 . Tunneler 6 | 4 1 1 . Hauler 2 | . 2 . . Recycler 1 | 1 . . . Watcher 3 | . 3 . . Swarmer 6 | . 2 4 . Grunt 8 | . 8 . . Sentry 1 | . . . 1 Artisan 1 | . . . 1 Subdweller 12 | . . . 12 Zionite 2 | . . . 2 Best Kill Streak 5 | 5 4 2 2 Combat Bots Only 4 | . 4 2 2 Max Kills in Single Turn 1 | 1 1 1 1 Gunslinging . | . . . . Exploded . | . . . . Melee . | . . . . Uniques/NPCs Destroyed . | . . . . Combat | -11 -10 -10 -10 -------- Run | Yrd Mat Min Sub Hostile Shots Fired 183 | . 62 28 93 Missed 56 | . 17 11 28 Hits 127 | . 45 17 65 Projectile 127 | . 45 17 65 Critical Strikes 5 | . 1 1 3 Damage Taken 1356 | . 338 77 941 Core 254 | . 42 14 198 Absorbed by Shields . | . . . . Ignored by Resistances 789 | . 218 59 512 Core Remaining (%) 100 | 100 . . . Volleys Fired 200 | 8 69 19 104 Largest 2 | 2 2 2 2 Hottest 160 | 60 60 60 160 Shots Fired 318 | 14 83 20 201 Gun 229 | 14 83 20 112 Cannon 88 | . . . 88 Launcher . | . . . . Special 1 | . . . 1 Kinetic 191 | 6 69 19 97 Thermal 127 | 8 14 1 104 Explosive . | . . . . Electromagnetic . | . . . . Robot Hit Streak 50 | 12 19 5 50 Robot Miss Streak 2 | . 1 2 1 Penetration Max . | . . . . Secondary Targets . | . . . . Shots Hit Robots 201 | 12 71 12 106 Core Hits 72 | 6 32 6 28 Critical Kills . | . . . . Critical Parts Destroyed . | . . . . Critical Strikes 1 | . . . 1 Blast 1 | . . . 1 Melee Attacks . | . . . . Impact . | . . . . Slashing . | . . . . Piercing . | . . . . Sneak Attacks . | . . . . Combat Hostiles . | . . . . Follow-up Attacks . | . . . . Damage Inflicted 2881 | 138 891 164 1688 Guns 2230 | 138 891 164 1037 Cannons 651 | . . . 651 Explosions . | . . . . Melee . | . . . . Ramming . | . . . . Kinetic 1782 | 49 743 164 826 Thermal 1099 | 89 148 . 862 Explosive . | . . . . Electromagnetic . | . . . . Impact . | . . . . Slashing . | . . . . Piercing . | . . . . Highest Corruption . | . . . . Average Corruption . | . . . . Corruption Purged . | . . . . Corruption Blocked . | . . . . Overload Shots . | . . . . Overflow Damage . | . . . . Projectiles . | . . . . Explosions . | . . . . Melee . | . . . . Knockbacks 11 | . . . 11 Impact . | . . . . Kinetic 10 | . . . 10 Secondary 1 | . . . 1 Self-Inflicted Damage . | . . . . Shots . | . . . . Rammed . | . . . . Targets Rammed . | . . . . Kicked . | . . . . Crushed . | . . . . Highest Temperature 102 | 45 102 3 84 Average Temperature 29 | 21 42 2 17 Received Heat Transfer 459 | . 222 . 237 Siege Activations . | . . . . Martial Activations . | . . . . Shielding Activations . | . . . . Robots Disrupted . | . . . . Combat Hostiles . | . . . . Robots Corrupted . | . . . . Combat Hostiles . | . . . . Parts Fried . | . . . . Impact Corruptions . | . . . . Robots Melted . | . . . . Combat Hostiles . | . . . . Parts Melted 2 | . . . 2 Heat Transferred 1860 | 200 325 . 1335 Parts Sabotaged . | . . . . Parts Stolen . | . . . . Parts Stripped . | . . . . Power Chain Reactions . | . . . . Alert | -11 -10 -10 -10 ------- Run | Yrd Mat Min Sub Maximum Alert Level . | . . . . Low Security (%) 100 | 100 100 100 . Level 1 . | . . . . Level 2 . | . . . . Level 3 . | . . . . Level 4 . | . . . . Level 5 . | . . . . High Security . | . . . . Max Security . | . . . . Peak Influence 89 | 10 89 50 . Initial 4 | . 4 . . Average 9 | 2 15 3 . Influence Increases 492 | 25 329 118 20 Destroy 0b10 Robot/C 300 | . 200 80 20 Destroy 0b10 Robot/NC 75 | 25 40 10 . Destroy Leader 70 | . 50 20 . Successful Hack 23 | . 23 . . Disable Machine 8 | . . 8 . Destroy Structure 1 | . 1 . . Lose Combat Pursuer 15 | . 15 . . Influence Decreases 492 | 15 339 118 20 Entered New Map 6 | . 6 . . Time Decay 486 | 15 333 118 20 Squads Dispatched 1 | . 1 . . Investigation 1 | . 1 . . Extermination . | . . . . Reinforcement . | . . . . Assault . | . . . . Garrison . | . . . . Intercept . | . . . . Searches Triggered . | . . . . Construction Impeded . | . . . . Haulers Reinforced . | . . . . Active Scanning Responses . | . . . . Cargo Convoy Interrupts . | . . . . Stealth | -11 -10 -10 -10 --------- Run | Yrd Mat Min Sub Distress Signals 2 | . 2 . . Communications Jammed . | . . . . Distress Signals . | . . . . Times Spotted 40 | . 21 4 15 Peak Tracking Total 4 | . 4 2 2 Tactical Retreats 1 | . 1 . . Traps | -11 -10 -10 -10 ------- Run | Yrd Mat Min Sub Traps Triggered 4 | . 2 . 2 Indirectly . | . . . . Trap Hack Attempts . | . . . . Triggered . | . . . . Disarmed . | . . . . Reprogrammed . | . . . . Reused . | . . . . Traps Extracted . | . . . . Installed . | . . . . Triggered . | . . . . Machines | -11 -10 -10 -10 ---------- Run | Yrd Mat Min Sub Machines Disabled 2 | . . 2 . Max in Single Turn 1 | . . 1 . Machines Repaired . | . . . . Machines Dismantled . | . . . . Machines Sabotaged . | . . . . Overloaded Fab Kills . | . . . . Hacking | -11 -10 -10 -10 --------- Run | Yrd Mat Min Sub Machines Accessed 6 | . 3 1 2 Terminals 3 | . 3 . . Fabricators . | . . . . Repair Stations . | . . . . Recycling Units . | . . . . Scanalyzers . | . . . . Garrison Access . | . . . . Total Hacks 16 | . 10 1 5 Successful 11 | . 5 1 5 Failed 5 | . 5 . . Catastrophic 2 | . 2 . . Database Lockouts . | . . . . Manual 9 | . 9 . . Terminals 10 | . 10 . . Fabricators . | . . . . Repair Stations . | . . . . Recycling Units . | . . . . Scanalyzers . | . . . . Garrison Access . | . . . . Terminal Hacks 11 | . 5 1 5 Record 4 | . . . 4 Part Schematic 2 | . 2 . . Robot Schematic 2 | . 2 . . Robot Analysis 1 | . 1 . . Open Door 1 | . . 1 . Proto ID Catalog 1 | . . . 1 Fabricator Hacks . | . . . . Repair Station Hacks . | . . . . Recycling Unit Hacks . | . . . . Scanalyzer . | . . . . Garrison Access Hacks . | . . . . Unauthorized Hacks . | . . . . Terminals . | . . . . Fabricators . | . . . . Repair Stations . | . . . . Recycling Units . | . . . . Scanalyzers . | . . . . Garrison Access . | . . . . Data Cores Recovered . | . . . . Used . | . . . . Hacking Detections 3 | . 3 . . Full Trace Events 3 | . 3 . . Feedback Events . | . . . . Feedback Blocked . | . . . . Robot Schematics Acquired 2 | . 2 . . Robots Built . | . . . . Authchips . | . . . . Time . | . . . . Total Robot Build Rating . | . . . . Part Schematics Acquired 2 | . 2 . . Parts Built . | . . . . Authchips . | . . . . Time . | . . . . Total Part Build Rating . | . . . . Part Studies Acquired . | . . . . Parts Repaired . | . . . . Time . | . . . . Parts Recycled . | . . . . Recycled Matter . | . . . . Retrieved Matter . | . . . . Retrieved Components . | . . . . Parts Scanalyzed . | . . . . Part Schematics Acquired . | . . . . Parts Damaged . | . . . . Bothacking | -11 -10 -10 -10 ------------ Run | Yrd Mat Min Sub Used RIF Installer . | . . . . Robots Hacked . | . . . . Non-combat . | . . . . Combat . | . . . . Robot Hacks Applied . | . . . . Relay Couplers Released . | . . . . Fabnet Peak Effective % . | . . . . Robots Rewired . | . . . . Allies Hacked . | . . . . Hacks Repelled . | . . . . Allies | -11 -10 -10 -10 -------- Run | Yrd Mat Min Sub Total Allies . | . . . . Largest Group . | . . . . Highest-Rated Group . | . . . . Highest-Rated Ally . | . . . . Total Orders . | . . . . Ally Attacks . | . . . . Total Damage . | . . . . Kills . | . . . . Allies Corrupted . | . . . . Allies Melted . | . . . . Intel | -11 -10 -10 -10 ------- Run | Yrd Mat Min Sub Active Infowar (turns) 3974 | . 759 1008 2207 Terrain 1975 | . . . 1975 Structural 1999 | . 759 1008 232 Robot Analysis Total 1 | . 1 . . Derelict Logs Recovered 2 | . . . 2 Drone Launches . | . . . . Drone Recoveries . | . . . . Exploration | -11 -10 -10 -10 ------------- Run | Yrd Mat Min Sub Turns Passed 4920 | 73 1053 1008 2786 Spaces Moved 2285 | 36 533 579 1137 Core 19 | 19 . . . Treads 1656 | 17 533 579 527 Legs 610 | . . . 610 Wheels . | . . . . Hover . | . . . . Flight . | . . . . Fastest Speed 50 | 50 160 160 140 Average Speed 178 | 101 160 160 199 Slowest Speed 280 | 160 160 160 280 Overloaded Moves . | . . . . Propulsion Burnouts . | . . . . Robots Hopped . | . . . . Potential Cave-ins . | . . . . Cave-ins Triggered . | . . . . Exploration Rate (%) 66 | 3 87 99 77 Regions Visited 3 Branch Regions 2 Pre-discovered Areas 3 | . . . 3 Known Exits Taken 3 | 1 1 1 . Unknown Exits Taken . | . . . . Scrap Searched 5 | . . . 5 Spaces Dug 9 | . . . 9 Terrain Destroyed 12 | . . . 12 Melee . | . . . . Projectile 12 | . . . 12 AOE . | . . . . Terrain Rammed . | . . . . Walls Destroyed . | . . . . Machines Disabled . | . . . . Actions | -11 -10 -10 -10 --------- Run | Yrd Mat Min Sub Total 2796 | 57 651 641 1447 Wait 250 | . 30 37 183 Move 2282 | 35 532 578 1137 Hop . | . . . . Pick Up 29 | 7 13 4 5 Fast Attach 6 | 2 . . 4 Attach 13 | 5 3 1 4 Detach 1 | . 1 . . Swap 8 | . 1 1 6 Drop 7 | . 2 1 4 Fire 200 | 8 69 19 104 Melee . | . . . . Ram . | . . . . Kick . | . . . . Crush . | . . . . Escape Stasis . | . . . . Rewire . | . . . . Trap . | . . . . Miscellaneous . | . . . . Route ------- -11/Scrapyard -10/Materials (discovered 4 exits: *Mat x2 / *Min / *Sub) -10/Mines (discovered 4 exits: *Mat x2 / Exi / *Sub) -10/Subcaves (discovered 1 exit: *Mat) History --------- Turn | Location | Event 5 | -11/Scrapyard | Identified exit to Materials 5 | -11/Scrapyard | Discovered exit to Materials (range 15) 74 | -11/Scrapyard | Entered Materials 74 | -10/Materials | Evolved 1 slot: Utility x1 300 | -10/Materials | Build established: Hacker-Mutant 348 | -10/Materials | Identified exit to Mines 348 | -10/Materials | Discovered exit to Mines (range 6) 467 | -10/Materials | Identified exit to Materials 467 | -10/Materials | Discovered exit to Materials (range 4) 856 | -10/Materials | Discovered exit to Materials (range 15) 999 | -10/Materials | Identified exit to Subcaves 999 | -10/Materials | Discovered exit to Subcaves (range 10) 1127 | -10/Materials | Entered Mines 1250 | -10/Mines | Discovered exit to Subcaves (range 6) 1333 | -10/Mines | Discovered exit to Materials (range 5) 1549 | -10/Mines | Found a Scrap Suit stashed away for nefarious purposes 1552 | -10/Mines | Found Scrap Suit 1613 | -10/Mines | Discovered exit to Materials (range 7) 1637 | -10/Mines | Found the Drone Emporium 1644 | -10/Mines | Found Prototype Device 1937 | -10/Mines | Deemed a non-threat by the Exiles lab entrance 1937 | -10/Mines | Identified exit to Exiles 1937 | -10/Mines | Discovered exit to Exiles (range 6) 2135 | -10/Mines | Entered Subcaves 2191 | -10/Subcaves | Ambushed by angry Subdweller bent on revenge 2212 | -10/Subcaves | Ambushed by angry Subdweller bent on revenge 2318 | -10/Subcaves | A swath of the cavern ceiling suddenly collapsed 2440 | -10/Subcaves | Shifting Twisted Machinery released Ripper 2466 | -10/Subcaves | Shifting Twisted Machinery released Mak. Flight Unit 2575 | -10/Subcaves | Shifting Twisted Machinery released Mak. System Shield 2614 | -10/Subcaves | Shifting Twisted Machinery released Battle Cannon 2784 | -10/Subcaves | Core integrity fell below 50% 3184 | -10/Subcaves | Ambushed by angry Subdweller bent on revenge 3252 | -10/Subcaves | Learned location of Zion (-6) 3252 | -10/Subcaves | Met a Zionite searching for "candidates" 3516 | -10/Subcaves | Learned location of 1 exit from Materials 3596 | -10/Subcaves | Core integrity fell below 20% 3713 | -10/Subcaves | Identified exit to Materials 3713 | -10/Subcaves | Discovered exit to Materials (range 11) 3730 | -10/Subcaves | Visited Clippyterm 3734 | -10/Subcaves | Learned location of Deep Caves (-6) 3734 | -10/Subcaves | Learned Factory trap positions 3857 | -10/Subcaves | Visited 4L-MR0's lab 4034 | -10/Subcaves | A swath of the cavern ceiling suddenly collapsed 4920 | -10/Subcaves | Disturbed a concealed Subdweller 4921 | -10/Subcaves | Destroyed by N8-3N3(R) with Subdweller Machine Gun Last Messages --------------- 04488_ Battle Cannon destroyed. 04495_ Acquired 4 matter. 04501_ GR-6QW(R) destroyed. 04503_ Acquired 51 matter. 04505_ Searching scrap... 04505_ Found Sub. Beam Cannon. 04505_ Found Battle Rifle. 04505_ Found 68 Matter. 04506_ Acquired 25 matter. 04511_ Searching scrap... 04511_ Found Sub. Beam Cannon. 04511_ Found 68 Matter. 04520_ Searching scrap... 04520_ Found Sub. Beam Cannon. 04520_ Found 40 Matter. 04524_ Acquired Sub. Beam Cannon. 04534_ Dropped Sub. Beam Cannon. 04544_ Acquired 20 matter. 04920_ N8-3N3(R) angrily emerges from the Twisted Machinery. Map ----- +----------------------------------------------------+ | ????????????????????##### " % ###### ##????????? | | ??????????????????????####%""#####??## ##???????? | | ???????????????????????###="#####???# ##??????#? | | ????????????????????????## "###?#??## #???#????# | | ????????????????????????## ##?####### %#????????? | | ???????????????????????###% ##?##### #????????? | | #???????????????????????## ###?# ## ##??#?????? | | #??????##??????????????### %#### #????????#? | | ??????# ????????????#### ### # ##????#???? | | ??#### #???????????### %### ### ##?#?????? | | ?## ??????????#?## ## ### #?????##? | | ## ?????????????### # ### ##??????? | | # ??????????????#### %% #### ##???#???? | | ?????????#####?#### % #### ##???????? | | ? ""????????##### ??#### % ### ##???#???? | | ?# ""????####?### "???#### ##???????? | | ## #???? "#?## ????### % ## #####???????? | | ## ##??? #??## ####?###% #########???????? | | "##?# "##? ######## #######??????????? | | =""## "#???? ##### ####???##????????? | | """ #??????##""# ### ##???????????????? | | #"" #????######""##### ##???????????#???? | | ## " """ #????#####"###### ####??????????????? | | ## "#########"#" ####?????????????? | | ####### ##"######## ##### ######??????????? | | ##?##" ##" ## #### ##<<%@ #####??????????? | | ####" #""## #### #<$$